bitfinex-derivatives/quotes_BTCF0:USTF0_20251023
["timestamp","ask_amount","ask_price","bid_price","bid_amount"]
[1761212188322,0.16069957,109500.0,109490.0,0.88225461]
[1761212189537,0.52149957,109500.0,109490.0,0.88225461]
[1761212189940,0.16069957,109500.0,109490.0,0.88225461]
[1761212198155,0.16069957,109500.0,109490.0,0.66093161]
[1761212198344,1.23188469,109500.0,109490.0,0.06756405]
[1761212198548,0.1481729,109490.0,109480.0,0.08035523]
[1761212198756,0.1481812,109480.0,109470.0,0.226642]
[1761212199054,0.15968999,109480.0,109470.0,0.9926816]
[1761212200149,0.15968999,109480.0,109470.0,0.901342]
[1761212200339,1.23087511,109480.0,109470.0,0.04401]
[1761212200545,0.1481896,109470.0,109460.0,0.19449161]
[1761212200852,0.1481896,109470.0,109460.0,0.22636891]
[1761212200853,0.68221595,109470.0,109460.0,0.22636891]
[1761212201246,0.65765716,109470.0,109460.0,0.29306306]
[1761212201441,0.65765716,109470.0,109460.0,0.20171486]
[1761212201952,0.5089896,109470.0,109460.0,0.29306326]
[1761212202852,0.5089896,109470.0,109460.0,0.20171486]
[1761212203051,0.5663017,109470.0,109460.0,0.20171486]
[1761212203356,0.53354839,109470.0,109460.0,0.20171486]
[1761212204153,0.52049839,109470.0,109460.0,0.20171486]
[1761212204357,0.49858839,109470.0,109460.0,0.55173082]
[1761212204857,0.52049839,109470.0,109460.0,0.55173082]
[1761212205349,0.4959396,109470.0,109460.0,0.55173082]
[1761212205751,0.1351396,109470.0,109460.0,0.75173082]
[1761212205956,0.0438,109470.0,109460.0,0.75173082]
[1761212206156,0.02189,109470.0,109460.0,0.75173082]
[1761212206456,0.0438,109470.0,109460.0,0.75173082]
[1761212206750,0.0438,109470.0,109460.0,0.44173082]
[1761212206956,0.0438,109470.0,109460.0,0.73173082]
[1761212207455,0.1351396,109470.0,109460.0,0.73173082]
[1761212210654,0.1351396,109470.0,109460.0,0.58315033]
[1761212213153,0.1351396,109470.0,109460.0,0.60780438]
[1761212219254,0.5096114,109480.0,109470.0,0.00758]
[1761212219459,0.5096114,109480.0,109470.0,1.02032886]
[1761212219764,0.4965614,109480.0,109470.0,1.04498291]
[1761212219960,0.4965614,109480.0,109470.0,0.87157423]
[1761212221866,0.4965614,109480.0,109470.0,0.89622828]
[1761212222569,0.5096033,109490.0,109480.0,0.0429]
[1761212222770,0.5096033,109490.0,109480.0,0.19165463]
[1761212222963,0.5096033,109490.0,109480.0,0.30165463]
[1761212223768,0.1491513,109480.0,109470.0,0.53730868]
[1761212224162,0.1491513,109480.0,109470.0,0.84730868]
[1761212224467,0.1491513,109480.0,109470.0,0.63730868]
[1761212224665,0.5099513,109480.0,109470.0,0.26630868]
[1761212224869,0.5099513,109480.0,109470.0,0.43855405]
[1761212225259,0.5099513,109480.0,109470.0,0.68855405]
[1761212225569,0.5099513,109480.0,109470.0,0.77989365]
[1761212226173,0.5099513,109480.0,109470.0,0.92864828]
[1761212226470,0.5099513,109480.0,109470.0,0.72864828]
[1761212227471,0.5099513,109480.0,109470.0,0.63730868]
[1761212227673,0.5099513,109480.0,109470.0,0.91864828]
[1761212227877,0.5099513,109480.0,109470.0,0.43855405]
[1761212228372,0.5099513,109480.0,109470.0,0.47141523]
[1761212228774,0.5099513,109480.0,109470.0,0.86016986]
[1761212228982,0.5099513,109480.0,109470.0,0.68016986]
[1761212230371,0.5099513,109480.0,109470.0,0.66016986]
[1761212232273,0.5099513,109480.0,109470.0,0.95150956]
[1761212232473,0.5099513,109480.0,109470.0,0.76150956]
[1761212233382,0.5099513,109480.0,109470.0,0.99150956]
[1761212233584,0.1491513,109480.0,109470.0,0.99150956]
[1761212233883,0.5099513,109480.0,109470.0,0.96685551]
[1761212234685,0.1491513,109480.0,109470.0,0.96685551]
[1761212235686,0.5099513,109480.0,109470.0,0.96685551]
[1761212235876,0.5099513,109480.0,109470.0,0.78685551]
[1761212236077,0.5099513,109480.0,109470.0,0.94685551]
[1761212236487,0.5099513,109480.0,109470.0,0.85551581]
[1761212236785,0.5099513,109480.0,109470.0,0.94685551]
[1761212237086,0.5099513,109480.0,109470.0,0.63685551]
[1761212237287,0.5099513,109480.0,109470.0,0.88685551]
[1761212239389,0.5099513,109480.0,109470.0,0.9115045]
[1761212241292,0.5099513,109480.0,109470.0,0.7715045]
[1761212244797,0.5099513,109480.0,109470.0,0.9415045]
[1761212244999,0.1491513,109480.0,109470.0,0.9415045]
[1761212245589,0.5099513,109480.0,109470.0,0.9415045]
[1761212246495,0.53451009,109480.0,109470.0,0.9415045]
[1761212247293,0.53451009,109480.0,109470.0,0.7015045]
[1761212247695,0.53451009,109480.0,109470.0,0.6101648]
[1761212247896,0.53451009,109480.0,109470.0,0.7015045]
[1761212248494,0.53451009,109480.0,109470.0,0.6101648]
[1761212248695,0.53451009,109480.0,109470.0,0.6801648]
[1761212250895,0.53451009,109480.0,109470.0,0.7715045]
[1761212252587,0.53451009,109480.0,109470.0,0.7115045]
[1761212253189,0.5672634,109480.0,109470.0,0.67864332]
[1761212253593,0.5672634,109480.0,109470.0,0.92864332]
[1761212256685,0.2064634,109480.0,109470.0,0.92864332]
[1761212256884,0.5672634,109480.0,109470.0,0.92864332]
[1761212257084,0.2064634,109480.0,109470.0,0.92864332]
[1761212257799,0.5672634,109480.0,109470.0,0.92864332]
[1761212257992,0.2064634,109480.0,109470.0,0.92864332]
[1761212258496,0.5672634,109480.0,109470.0,0.87864332]
[1761212259602,0.5672634,109480.0,109470.0,0.43854899]
[1761212260099,0.5672634,109480.0,109470.0,0.38854899]
[1761212260301,0.5672634,109480.0,109470.0,0.43854899]
[1761212263098,0.53451009,109480.0,109470.0,0.44676118]
[1761212263696,0.53451009,109480.0,109470.0,0.47143057]
[1761212264003,0.53451009,109480.0,109470.0,0.42143057]
[1761212264304,0.53451009,109480.0,109470.0,0.51277017]
[1761212266204,0.53451009,109480.0,109470.0,0.47990899]
[1761212266798,0.53451009,109480.0,109470.0,0.51277017]
[1761212266994,0.53451009,109480.0,109470.0,0.47990899]
[1761212267198,0.53451009,109480.0,109470.0,0.06756939]
[1761212267401,0.53451009,109480.0,109470.0,0.15890899]
[1761212268001,0.53451009,109480.0,109470.0,0.15890919]
[1761212269299,0.53451009,109480.0,109470.0,0.28890919]
[1761212269502,0.53451009,109480.0,109470.0,0.32177037]
[1761212269700,0.53451009,109480.0,109470.0,0.52177037]
[1761212269901,0.53451009,109480.0,109470.0,0.32177037]
[1761212270402,0.53451009,109480.0,109470.0,0.15890919]
[1761212270599,0.53451009,109480.0,109470.0,0.30766382]
[1761212270808,0.53451009,109480.0,109470.0,0.30766711]
[1761212274315,0.53451009,109480.0,109470.0,0.34052829]
[1761212276627,0.53451009,109480.0,109470.0,0.19177037]
[1761212276917,0.53451009,109480.0,109470.0,0.34052829]
[1761212278821,0.53451009,109480.0,109470.0,0.39052829]
[1761212285127,0.53451009,109480.0,109470.0,0.29918849]
[1761212285527,0.53451009,109480.0,109470.0,0.15043057]
[1761212285717,0.53451009,109480.0,109470.0,0.24918849]
[1761212285915,0.68326801,109480.0,109470.0,0.28918849]
[1761212286117,0.68326801,109480.0,109470.0,0.24918849]
[1761212286315,0.68326801,109480.0,109470.0,0.29918849]
[1761212286518,0.53451009,109480.0,109470.0,0.29918849]
[1761212286721,0.68326801,109480.0,109470.0,0.29918849]
[1761212288627,0.68326801,109480.0,109470.0,0.25632731]
[1761212288928,0.71602132,109480.0,109470.0,0.21632731]
[1761212289230,0.71602132,109480.0,109470.0,0.04604939]
[1761212289527,0.71602132,109480.0,109470.0,0.02466939]
[1761212290326,1.03694132,109480.0,109470.0,0.02466939]
[1761212290732,0.1486196,109470.0,109460.0,0.08834787]
[1761212290928,0.68273041,109470.0,109460.0,0.08834787]
[1761212291130,0.68273041,109470.0,109460.0,0.02466939]
[1761212291322,0.71548372,109470.0,109460.0,0.02466939]
[1761212291725,0.71548372,109470.0,109460.0,0.22537916]
[1761212292230,0.71548372,109470.0,109460.0,0.05195185]
[1761212292832,0.71548372,109470.0,109460.0,0.20070977]
[1761212293032,0.68273041,109470.0,109460.0,0.21643731]
[1761212293233,0.68273041,109470.0,109460.0,0.19176792]
[1761212293531,0.68273041,109470.0,109460.0,0.20071465]
[1761212293931,0.68273041,109470.0,109460.0,0.19176792]
[1761212294638,0.68273041,109470.0,109460.0,0.17053792]
[1761212295139,0.68273041,109470.0,109460.0,0.02178]
[1761212295330,0.68273041,109470.0,109460.0,0.04301]
[1761212296237,0.68273041,109470.0,109460.0,0.02178]
[1761212297838,0.68273041,109470.0,109460.0,0.17053792]
[1761212298440,0.1486278,109460.0,109450.0,0.52182279]
[1761212298637,0.1486278,109460.0,109450.0,0.72058071]
[1761212298833,0.1486278,109460.0,109450.0,0.67058071]
[1761212299039,0.1486278,109460.0,109450.0,0.78058071]
[1761212299239,0.1486278,109460.0,109450.0,0.74771953]
[1761212299740,0.5094278,109460.0,109450.0,0.74771953]
[1761212300637,0.5094278,109460.0,109450.0,0.63771953]
[1761212300942,0.41808,109460.0,109450.0,1.51941745]
[1761212301242,0.5094279,109460.0,109450.0,1.55227863]
[1761212303141,0.5094279,109460.0,109450.0,1.51941745]
[1761212305243,0.04395,109460.0,109450.0,1.88021745]
[1761212306151,0.1352979,109460.0,109450.0,1.88021745]
[1761212313159,0.1352979,109460.0,109450.0,1.88840924]
[1761212314266,0.1352979,109460.0,109450.0,1.93770101]
[1761212321970,0.04395,109460.0,109450.0,1.93770101]
[1761212322271,0.1352979,109460.0,109450.0,1.93770101]
[1761212324776,0.1352979,109460.0,109450.0,1.90483983]
[1761212332681,0.1352979,109460.0,109450.0,1.75609281]
[1761212333375,0.1352979,109460.0,109450.0,1.59438399]
[1761212333376,0.1487679,109460.0,109450.0,1.59438399]
[1761212333580,0.5095679,109460.0,109450.0,0.97100221]
[1761212333782,0.5095679,109460.0,109450.0,1.40525219]
[1761212333982,0.1487679,109460.0,109450.0,1.40525219]
[1761212338182,0.1487679,109460.0,109450.0,1.25648337]
[1761212338381,0.1487679,109460.0,109450.0,1.40525219]
[1761212342486,0.1487679,109460.0,109450.0,0.65389599]
[1761212342785,0.1487679,109460.0,109450.0,0.60460422]
[1761212343189,0.17332079,109460.0,109450.0,0.59637847]
[1761212343883,0.17332079,109460.0,109450.0,0.68773477]
[1761212344081,0.17332079,109460.0,109450.0,0.96773477]
[1761212346074,0.17332079,109460.0,109450.0,0.98110477]
[1761212347984,0.17332079,109460.0,109450.0,0.55974847]
[1761212348184,0.17332079,109460.0,109450.0,0.65974847]
[1761212348690,0.17332079,109460.0,109450.0,0.59637847]
[1761212348886,0.17332079,109460.0,109450.0,0.07672965]
[1761212348887,0.6060741,109460.0,109450.0,0.07672965]
[1761212349078,0.94232121,109460.0,109450.0,0.05206162]
[1761212350485,1.41193003,109460.0,109450.0,0.04301]
[1761212350689,0.1487962,109450.0,109440.0,0.3637]
[1761212350989,0.20611059,109450.0,109440.0,0.1842245]
[1761212351582,0.20611059,109450.0,109440.0,0.09286]
[1761212351785,0.20611059,109450.0,109440.0,0.04286]
[1761212351992,0.56691059,109450.0,109440.0,0.09185597]
[1761212352796,0.96691059,109450.0,109440.0,0.00899597]
[1761212353092,0.1488045,109440.0,109430.0,0.04172]
[1761212353390,0.1488129,109430.0,109420.0,0.10385115]
[1761212353589,0.5096129,109430.0,109420.0,0.12095737]
[1761212354083,0.5096129,109430.0,109420.0,0.13000716]
[1761212354280,0.5096129,109430.0,109420.0,0.61015718]
[1761212354486,0.5096129,109430.0,109420.0,0.41015718]
[1761212355187,0.5096129,109430.0,109420.0,0.29548915]
[1761212355393,0.5096129,109430.0,109420.0,0.31410795]
[1761212355593,0.5096129,109430.0,109420.0,0.34410795]
[1761212355777,0.5096129,109430.0,109420.0,0.20410795]
[1761212356289,0.5096129,109430.0,109420.0,0.05533913]
[1761212357998,0.5096129,109430.0,109420.0,0.04628934]
[1761212360888,0.5096129,109430.0,109420.0,0.17628934]
[1761212361392,0.5096129,109430.0,109420.0,0.16531307]
[1761212363992,0.5096129,109430.0,109420.0,0.05531307]
[1761212365298,0.5096129,109430.0,109420.0,0.20408189]
[1761212365497,0.5096129,109430.0,109420.0,0.05531307]
[1761212366194,0.8305329,109430.0,109420.0,0.31408189]
[1761212366397,0.8305329,109430.0,109420.0,0.40546319]
[1761212366997,0.1488129,109430.0,109420.0,0.63546319]
[1761212370298,0.1498129,109430.0,109420.0,0.66002855]
[1761212370795,0.1488129,109430.0,109420.0,0.66002855]
[1761212371100,0.1498129,109430.0,109420.0,0.66002855]
[1761212371399,0.1488129,109430.0,109420.0,0.66002855]
[1761212371697,0.1498129,109430.0,109420.0,0.66002855]
[1761212372901,0.001,109430.0,109420.0,1.42751855]
[1761212373095,0.0923728,109430.0,109420.0,1.46041233]
[1761212373600,0.1138928,109430.0,109420.0,1.46041233]
[1761212373797,0.1148928,109430.0,109420.0,1.46041233]
[1761212374103,0.1505528,109430.0,109420.0,1.09292233]
[1761212376100,0.1505528,109430.0,109420.0,1.06835697]
[1761212378601,0.1505528,109430.0,109420.0,0.91958815]
[1761212378800,0.1505528,109430.0,109420.0,0.97697567]
[1761212379512,0.1505528,109430.0,109420.0,1.06835687]
[1761212380108,0.1505528,109430.0,109420.0,0.85749862]
[1761212380299,0.1505528,109430.0,109420.0,0.95697567]
[1761212381202,0.1505528,109430.0,109420.0,1.00626744]
[1761212382409,0.1505528,109430.0,109420.0,1.09764864]
[1761212383109,0.1505528,109430.0,109420.0,1.00626744]
[1761212383913,0.1505528,109430.0,109420.0,1.09764874]
[1761212391016,0.1505528,109430.0,109420.0,1.00626744]
[1761212392426,0.1505528,109430.0,109420.0,1.09764864]
[1761212392729,0.1505528,109430.0,109420.0,1.24662346]
[1761212393122,0.1505528,109430.0,109420.0,1.19733169]
[1761212393827,0.1505528,109430.0,109420.0,1.10595049]
[1761212394422,0.29942462,109430.0,109420.0,0.31174079]
[1761212395124,0.1505528,109430.0,109420.0,0.28707867]
[1761212395626,0.29942462,109430.0,109420.0,0.28707867]
[1761212396320,0.32390268,109430.0,109420.0,0.31175133]
[1761212396828,0.32390268,109430.0,109420.0,0.40313253]
[1761212397028,0.32390268,109430.0,109420.0,0.31175133]
[1761212397831,0.17503086,109430.0,109420.0,0.31175133]
[1761212399929,0.17503086,109430.0,109420.0,0.56175133]
[1761212400129,0.17503086,109430.0,109420.0,0.65313253]
[1761212400330,0.17503086,109430.0,109420.0,0.45313253]
[1761212400532,0.17503086,109430.0,109420.0,0.66313253]
[1761212400734,0.17503086,109430.0,109420.0,0.57175133]
[1761212400936,0.17503086,109430.0,109420.0,0.3117544]
[1761212401239,0.68470268,109430.0,109420.0,0.43376258]
[1761212401435,0.53583086,109430.0,109420.0,0.6740156]
[1761212401631,0.17503086,109430.0,109420.0,1.11288742]
[1761212402637,0.53583086,109430.0,109420.0,1.11288742]
[1761212403235,0.5113528,109430.0,109420.0,1.13750346]
[1761212404341,0.1505528,109430.0,109420.0,1.13750346]
[1761212404841,0.1379128,109430.0,109420.0,1.13750346]
[1761212405044,0.1379128,109430.0,109420.0,1.10460968]
[1761212405232,0.0923728,109430.0,109420.0,1.10460968]
[1761212406747,0.001,109430.0,109420.0,2.1626815]
[1761212406937,0.001,109430.0,109420.0,1.77911209]
[1761212408342,0.001,109430.0,109420.0,1.63024027]
[1761212408545,0.001,109430.0,109420.0,1.77911209]
[1761212409144,0.0913653,109440.0,109430.0,0.1397829]
[1761212409346,0.0913653,109440.0,109430.0,0.80970124]
[1761212409743,0.53330516,109450.0,109440.0,0.0913645]
[1761212410047,0.4742471,109450.0,109440.0,1.12136284]
[1761212411247,0.4742471,109450.0,109440.0,1.07205802]
[1761212411744,0.1134471,109450.0,109440.0,1.07205802]
[1761212411948,0.1345571,109450.0,109440.0,1.07205802]
[1761212412347,0.1355571,109450.0,109440.0,1.07205802]
[1761212413240,0.0923571,109450.0,109440.0,1.07205802]
[1761212413442,0.1144471,109450.0,109440.0,1.07205802]
[1761212413638,0.1355571,109450.0,109440.0,1.14368111]
[1761212414351,0.1355571,109450.0,109440.0,1.50448111]
[1761212415153,0.1491271,109450.0,109440.0,1.49700111]
[1761212416152,0.1491271,109450.0,109440.0,1.06479661]
[1761212417053,0.1491271,109450.0,109440.0,1.15616111]
[1761212417558,0.1491271,109450.0,109440.0,1.08940533]
[1761212417853,0.1491271,109450.0,109440.0,1.20076983]
[1761212418052,0.1491271,109450.0,109440.0,1.05189801]
[1761212419051,0.1491271,109450.0,109440.0,0.96053351]
[1761212419558,0.1491271,109450.0,109440.0,1.05189801]
[1761212420059,0.1491271,109450.0,109440.0,1.20076983]
[1761212426261,0.29799892,109450.0,109440.0,0.24807042]
[1761212426465,0.65879892,109450.0,109440.0,0.53600054]
[1761212428070,0.5099271,109450.0,109440.0,0.53600054]
[1761212429159,0.5099271,109450.0,109440.0,0.56887042]
[1761212431870,0.5099271,109450.0,109440.0,0.66023502]
[1761212433373,0.5099271,109450.0,109440.0,0.95023502]
[1761212433573,0.5099271,109450.0,109440.0,0.77023502]
[1761212433772,0.5099271,109450.0,109440.0,0.95023502]
[1761212434273,0.5099271,109450.0,109440.0,0.9256263]
[1761212435275,0.5099271,109450.0,109440.0,0.97493112]
[1761212438481,0.5099271,109450.0,109440.0,0.8260593]
[1761212438973,0.5099271,109450.0,109440.0,0.97493112]
[1761212439679,0.5099271,109450.0,109440.0,1.01493112]
[1761212441183,0.5099271,109450.0,109440.0,1.16380294]
[1761212443080,0.5099271,109450.0,109440.0,1.01493112]
[1761212443280,0.53440516,109450.0,109440.0,0.99029376]
[1761212445981,0.53440516,109450.0,109440.0,0.61892916]
[1761212446179,0.53440516,109450.0,109440.0,0.71029366]
[1761212446883,0.53440516,109450.0,109440.0,0.66029366]
[1761212447076,0.53440516,109450.0,109440.0,0.97029366]
[1761212448082,0.53440516,109450.0,109440.0,0.71029366]
[1761212449874,0.53440516,109450.0,109440.0,1.11916548]
[1761212450076,0.17360516,109450.0,109440.0,1.11916548]
[1761212451276,0.53440516,109450.0,109440.0,1.11916548]
[1761212453180,0.5099271,109450.0,109440.0,1.14380284]
[1761212453685,0.5099271,109450.0,109440.0,1.05243834]
[1761212453889,0.5099271,109450.0,109440.0,0.91356652]
[1761212454081,0.65879892,109450.0,109440.0,0.91356652]
[1761212454383,0.68327698,109450.0,109440.0,0.49538988]
[1761212454576,0.68327698,109450.0,109440.0,0.37452988]
[1761212454773,0.53440516,109450.0,109440.0,0.37452988]
[1761212454978,0.53440516,109450.0,109440.0,0.39538988]
[1761212455383,0.53440516,109450.0,109440.0,0.50538988]
[1761212455689,0.53440516,109450.0,109440.0,0.39538988]
[1761212455984,0.53440516,109450.0,109440.0,0.51538988]
[1761212456285,0.53440516,109450.0,109440.0,0.39538988]
[1761212456486,0.53440516,109450.0,109440.0,0.50538988]
[1761212457293,0.53440516,109450.0,109440.0,0.53005974]
[1761212457695,0.53340516,109450.0,109440.0,0.53005974]
[1761212457894,0.53440516,109450.0,109440.0,0.53005974]
[1761212458396,0.53440516,109450.0,109440.0,0.20925974]
[1761212460396,0.53440516,109450.0,109440.0,0.22925974]
[1761212460701,0.53440516,109450.0,109440.0,0.09925974]
[1761212460897,0.53440516,109450.0,109440.0,0.23925974]
[1761212461296,0.53440516,109450.0,109440.0,0.09925974]
[1761212461498,0.53440516,109450.0,109440.0,0.21925974]
[1761212461796,0.53440516,109450.0,109440.0,0.09925974]
[1761212461997,0.53440516,109450.0,109440.0,0.20925974]
[1761212462698,0.53440516,109450.0,109440.0,0.09925974]
[1761212463200,0.53440516,109450.0,109440.0,0.21925974]
[1761212463586,0.53440516,109450.0,109440.0,0.09925974]
[1761212463796,0.53440516,109450.0,109440.0,0.20925974]
[1761212463997,1.1232589,109450.0,109440.0,0.05753974]
[1761212464297,0.1510128,109430.0,109420.0,0.08807739]
[1761212464498,0.53644863,109430.0,109420.0,0.08807739]
[1761212464698,0.53644863,109430.0,109420.0,0.07917842]
[1761212465200,0.5118128,109430.0,109420.0,0.04628934]
[1761212465400,0.5118128,109430.0,109420.0,0.16628934]
[1761212466302,0.5118128,109430.0,109420.0,0.04628934]
[1761212466599,0.5118128,109430.0,109420.0,0.15551399]
[1761212469700,0.5118128,109430.0,109420.0,0.05551399]
[1761212469901,0.1278395,109410.0,109400.0,0.04172]
[1761212470205,0.5118295,109410.0,109400.0,0.67252]
[1761212470398,0.5118295,109410.0,109400.0,0.68148082]
[1761212471102,0.5118295,109410.0,109400.0,0.68348082]
[1761212471303,0.5118295,109410.0,109400.0,0.68448082]
[1761212471799,0.5118295,109410.0,109400.0,0.68248082]
[1761212471800,0.5128295,109410.0,109400.0,0.68248082]
[1761212472101,0.5128295,109410.0,109400.0,0.36168082]
[1761212472606,0.5128295,109410.0,109400.0,0.36068082]
[1761212474306,0.5128295,109410.0,109400.0,0.05068082]
[1761212475397,0.5128295,109410.0,109400.0,0.19953456]
[1761212477601,0.001,109410.0,109400.0,1.4672761]
[1761212478106,0.001,109410.0,109400.0,1.36772718]
[1761212479305,0.001,109410.0,109400.0,1.51658092]
[1761212479504,0.001,109410.0,109400.0,1.51612718]
[1761212480006,0.1379016,109420.0,109410.0,0.1331094]
[1761212480206,0.1510216,109420.0,109410.0,0.94296314]
[1761212481106,0.1510216,109420.0,109410.0,0.7941094]
[1761212481306,0.1520216,109420.0,109410.0,0.94296314]
[1761212485512,0.1520216,109420.0,109410.0,1.09136314]
[1761212486508,0.04752,109420.0,109410.0,1.24769688]
[1761212486697,0.001,109420.0,109410.0,1.24769688]
[1761212486902,0.001,109420.0,109410.0,1.2970017]
[1761212487313,0.138271,109420.0,109410.0,1.2970017]
[1761212487611,0.114951,109420.0,109410.0,1.2970017]
[1761212488408,0.02357,109420.0,109410.0,1.2970017]
[1761212489215,0.02257,109420.0,109410.0,1.2970017]
[1761212489414,0.02357,109420.0,109410.0,1.2970017]
[1761212490119,0.138271,109420.0,109410.0,1.2970017]
[1761212491514,0.138271,109420.0,109410.0,1.5094017]
[1761212491815,0.04689,109420.0,109410.0,1.5094017]
[1761212492011,0.06043,109420.0,109410.0,1.5094017]
[1761212492712,0.151811,109420.0,109410.0,1.5094017]
[1761212493120,0.06043,109420.0,109410.0,1.5094017]
[1761212493309,0.04689,109420.0,109410.0,1.5094017]
[1761212494613,0.001,109420.0,109410.0,1.5094017]
[1761212494813,0.001,109420.0,109410.0,2.0578017]
[1761212496517,0.15038,109440.0,109430.0,0.1330927]
[1761212496711,0.15038,109440.0,109430.0,0.94282644]
[1761212497916,0.15038,109440.0,109430.0,0.97564769]
[1761212498107,0.15038,109440.0,109430.0,0.94282644]
[1761212498621,0.15138,109440.0,109430.0,0.94282644]
[1761212503313,0.15138,109440.0,109430.0,0.80145374]
[1761212503513,0.15138,109440.0,109430.0,0.4126]
[1761212503825,0.15138,109440.0,109430.0,0.56145374]
[1761212505216,0.15138,109440.0,109430.0,0.59427499]
[1761212506018,0.15138,109440.0,109430.0,0.58427499]
[1761212506219,0.15138,109440.0,109430.0,0.84427499]
[1761212506514,0.15138,109440.0,109430.0,0.64427499]
[1761212506814,0.15138,109440.0,109430.0,0.96564769]
[1761212507318,0.15138,109440.0,109430.0,0.81679395]
[1761212507520,0.15138,109440.0,109430.0,0.96564769]
[1761212514218,0.06001,109440.0,109430.0,0.96564769]
[1761212514419,0.02357,109440.0,109430.0,1.01495251]
[1761212514721,0.001,109440.0,109430.0,1.16374683]
[1761212514911,0.001,109440.0,109430.0,1.52454683]
[1761212515110,0.02351,109440.0,109430.0,1.52454683]
[1761212516119,0.02251,109440.0,109430.0,1.52454683]
[1761212516318,0.02351,109440.0,109430.0,1.52454683]
[1761212517326,0.04573,109440.0,109430.0,1.52454683]
[1761212517625,0.04473,109440.0,109430.0,1.52454683]
[1761212517829,0.04573,109440.0,109430.0,1.52454683]
[1761212518326,0.02351,109440.0,109430.0,1.52454683]
[1761212519328,0.001,109440.0,109430.0,1.89172558]
[1761212523829,0.02351,109440.0,109430.0,1.59407752]
[1761212524023,0.04573,109440.0,109430.0,1.89172558]
[1761212524224,0.001,109440.0,109430.0,1.89172558]
[1761212526931,0.001,109440.0,109430.0,1.49172558]
[1761212531937,0.1370944,109440.0,109430.0,1.49172558]
[1761212532234,0.1501244,109440.0,109430.0,1.49172558]
[1761212533238,0.1501244,109440.0,109430.0,1.47529162]
[1761212534235,0.1501244,109440.0,109430.0,1.52459644]
[1761212535936,0.1501244,109440.0,109430.0,1.37577241]
[1761212537336,0.1501244,109440.0,109430.0,1.22694838]
[1761212537537,0.1501244,109440.0,109430.0,1.37577241]
[1761212541337,0.29894843,109440.0,109430.0,0.45389568]
[1761212541636,0.17473934,109440.0,109430.0,0.66883717]
[1761212543332,0.1501244,109440.0,109430.0,0.69347971]
[1761212544343,0.1501244,109440.0,109430.0,0.96485341]
[1761212544543,0.1501244,109440.0,109430.0,0.77485341]
[1761212546140,0.1501244,109440.0,109430.0,0.70347971]
[1761212546642,0.1501244,109440.0,109430.0,0.89347971]
[1761212546842,0.1501244,109440.0,109430.0,0.64347971]
[1761212548048,0.1501244,109440.0,109430.0,0.73485341]
[1761212548551,0.1501244,109440.0,109430.0,0.98485341]
[1761212548846,0.1501244,109440.0,109430.0,0.79485341]
[1761212550543,0.1501244,109440.0,109430.0,0.68485341]
[1761212550750,0.1501244,109440.0,109430.0,1.02485341]
[1761212557649,0.1501244,109440.0,109430.0,0.81347971]
[1761212558451,0.1501244,109440.0,109430.0,0.90485341]
[1761212559058,0.1501244,109440.0,109430.0,0.75602938]
[1761212559256,0.1501244,109440.0,109430.0,0.90485341]
[1761212559458,0.1501244,109440.0,109430.0,0.75602938]
[1761212559651,0.1501244,109440.0,109430.0,0.90485341]
[1761212562159,0.1370944,109440.0,109430.0,1.41447744]
[1761212562454,0.1370944,109440.0,109430.0,1.38160658]
[1761212562957,0.1370944,109440.0,109430.0,1.23278255]
[1761212563154,0.1370944,109440.0,109430.0,1.38160658]
[1761212563359,0.0923644,109440.0,109430.0,1.38160658]
[1761212565464,0.001,109440.0,109430.0,1.38160658]
[1761212568562,0.001,109440.0,109430.0,1.78160658]
[1761212568761,0.001,109440.0,109430.0,1.73230176]
[1761212568962,0.001,109440.0,109430.0,1.79802412]
[1761212573366,0.001,109440.0,109430.0,1.78157755]
[1761212574367,0.08215494,109460.0,109450.0,0.1132171]
[1761212574559,0.06961494,109460.0,109450.0,1.0855597]
[1761212574758,0.045,109460.0,109450.0,0.93673567]
[1761212575868,0.046,109460.0,109450.0,0.93673567]
[1761212576261,0.1373483,109460.0,109450.0,0.93673567]
[1761212576668,0.1373483,109460.0,109450.0,0.93668593]
[1761212578266,0.1373483,109460.0,109450.0,1.29748593]
[1761212582465,0.1510183,109460.0,109450.0,1.29000593]
[1761212582675,0.1510183,109460.0,109450.0,0.68907454]
[1761212582865,0.1510183,109460.0,109450.0,0.92920593]
[1761212583266,0.1510183,109460.0,109450.0,0.96205198]
[1761212590188,0.1510183,109460.0,109450.0,0.93741744]
[1761212592394,0.1510183,109460.0,109450.0,0.96203835]
[1761212593285,0.1510183,109460.0,109450.0,0.93741744]
[1761212594492,0.1510183,109460.0,109450.0,1.29821744]
[1761212594891,0.1510183,109460.0,109450.0,0.93741744]
[1761212595296,0.1510183,109460.0,109450.0,0.98669323]
[1761212595595,0.05967,109460.0,109450.0,0.98669323]
[1761212595782,0.1510188,109460.0,109450.0,0.98669323]
[1761212598887,0.05967,109460.0,109450.0,1.34749323]
[1761212599278,0.1510187,109460.0,109450.0,1.31464718]
[1761212600090,0.1510187,109460.0,109450.0,0.98672614]
[1761212600292,0.1510187,109460.0,109450.0,0.95384718]
[1761212601987,0.05967,109460.0,109450.0,0.95384718]
[1761212603795,0.05967,109460.0,109450.0,1.31464718]
[1761212603990,0.05967,109460.0,109450.0,0.95384718]
[1761212605497,0.05967,109460.0,109450.0,1.31464718]
[1761212606297,0.05967,109460.0,109450.0,0.95384718]
[1761212606599,0.05967,109460.0,109450.0,1.31464718]
[1761212609401,0.1510185,109460.0,109450.0,1.31464718]
[1761212613403,0.1510184,109460.0,109450.0,1.31464718]
[1761212613602,0.05967,109460.0,109450.0,1.31464718]
[1761212615007,0.046,109460.0,109450.0,1.31464718]
[1761212615306,0.001,109460.0,109450.0,1.31464718]
[1761212618114,0.04401,109460.0,109450.0,1.31464718]
[1761212623217,0.0686345,109460.0,109450.0,1.29827025]
[1761212626718,0.1736832,109460.0,109450.0,1.29827025]
[1761212628018,0.5344832,109460.0,109450.0,0.22539315]
[1761212628216,0.5344832,109460.0,109450.0,0.42193421]
[1761212628415,0.56733097,109460.0,109450.0,0.42193421]
[1761212628619,0.56733097,109460.0,109450.0,0.51329151]
[1761212628817,0.56733097,109460.0,109450.0,0.10129421]
[1761212629017,0.56733097,109460.0,109450.0,0.42193421]
[1761212629224,0.56733097,109460.0,109450.0,0.38903535]
[1761212630121,0.5344832,109460.0,109450.0,0.42193421]
[1761212630323,0.5344832,109460.0,109450.0,0.46193421]
[1761212631126,0.5344832,109460.0,109450.0,0.55329161]
[1761212631628,0.5344832,109460.0,109450.0,0.9820659]
[1761212633325,0.5098587,109460.0,109450.0,1.00666634]
[1761212634328,0.5098587,109460.0,109450.0,0.64530894]
[1761212635331,0.5098587,109460.0,109450.0,0.84530894]
[1761212637441,0.5098587,109460.0,109450.0,0.93666624]
[1761212638748,0.5098587,109460.0,109450.0,0.93669389]
[1761212639641,0.5098587,109460.0,109450.0,0.84533659]
[1761212640143,0.5098587,109460.0,109450.0,0.59533659]
[1761212640343,0.5098587,109460.0,109450.0,0.64533659]